bitfinex/quotes_SOLUSD_20250819
["timestamp","ask_amount","ask_price","bid_price","bid_amount"]
[1755561602283,3.67546788,183.23,183.2,0.36]
[1755561602466,3.67546788,183.23,183.19,0.36]
[1755561604280,4.31546788,183.22,183.17,1e-08]
[1755561604594,3.61569805,183.21,183.17,1e-08]
[1755561604796,0.7,183.21,183.17,1e-08]
[1755561605007,0.7,183.2,183.17,1e-08]
[1755561605296,3.61546201,183.19,183.17,1e-08]
[1755561605466,0.7,183.2,183.17,1e-08]
[1755561605667,0.7,183.18,183.17,1e-08]
[1755561606085,4.31589021,183.21,183.17,1e-08]
[1755561606287,3.61589021,183.2,183.17,1e-08]
[1755561606470,3.61589021,183.19,183.17,1e-08]
[1755561606808,0.7,183.2,183.17,1e-08]
[1755561607092,0.7,183.18,183.17,1e-08]
[1755561607299,4.31656696,183.18,183.17,1e-08]
[1755561607674,3.61656696,183.19,183.17,1e-08]
[1755561607873,6.12857847,183.2,183.17,1e-08]
[1755561607874,0.67,183.18,183.17,1e-08]
[1755561608082,4.28708872,183.18,183.17,1e-08]
[1755561608684,9.74619997,183.18,183.17,1e-08]
[1755561608887,4.28708872,183.18,183.17,1e-08]
[1755561610005,9.74619997,183.18,183.17,1e-08]
[1755561613706,13.76217053,183.18,183.17,1e-08]
[1755561615201,4.28708872,183.18,183.17,1e-08]
[1755561615490,3.61708872,183.18,183.17,1e-08]
[1755561615706,9.74619997,183.18,183.17,1e-08]
[1755561620001,33.38530625,183.18,183.17,1e-08]
[1755561620326,33.38530625,183.18,183.16,0.03]
[1755561620327,28.86676464,183.18,183.16,0.03]
[1755561620624,93.51666666,183.17,183.16,0.03]
[1755561620999,98.97607595,183.17,183.16,0.03]
[1755561621321,137.29607595,183.17,183.16,0.03]
[1755561622319,152.40229152,183.17,183.16,0.03]
[1755561622512,15.10621557,183.16,183.15,0.03]
[1755561622715,27.92018957,183.16,183.15,0.03]
[1755561622921,33.37989692,183.16,183.15,0.03]
[1755561624429,28.86556899,183.16,183.14,0.03]
[1755561624594,27.91749693,183.15,183.14,0.03]
[1755561625300,33.37750239,183.15,183.14,0.03]
[1755561625513,24.85330975,183.15,183.14,0.03]
[1755561625707,24.18330975,183.15,183.14,0.03]
[1755561627232,24.85330975,183.15,183.14,0.03]
[1755561630431,63.21330975,183.15,183.14,0.03]
[1755561635338,67.21742169,183.15,183.14,0.03]
[1755561635513,71.72905698,183.15,183.14,1e-08]
[1755561636728,67.21742169,183.15,183.14,1e-08]
[1755561637132,62.54330975,183.15,183.14,1e-08]
[1755561637515,63.21330975,183.15,183.14,1e-08]
[1755561638033,24.85330975,183.15,183.14,1e-08]
[1755561638224,62.54330975,183.15,183.14,1e-08]
[1755561642629,41.97708872,183.15,183.14,1e-08]
[1755561642954,41.97708872,183.15,183.14,0.36000001]
[1755561643136,41.97708872,183.15,183.14,1e-08]
[1755561644045,3.61708872,183.15,183.14,0.36000001]
[1755561644230,38.34,183.15,183.14,0.36000001]
[1755561644434,41.95708872,183.15,183.14,0.36000001]
[1755561645951,3.61708872,183.15,183.14,0.36000001]
[1755561646145,38.4,183.17,183.14,0.36000001]
[1755561646344,38.4,183.17,183.14,1e-08]
[1755561646549,38.4,183.17,183.15,0.36]
[1755561647252,38.4,183.17,183.14,0.36000001]
[1755561649032,38.4,183.17,183.15,0.36]
[1755561649232,3.61591308,183.16,183.15,0.36]
[1755561649431,3.61591308,183.16,183.14,1e-08]
[1755561649751,38.4,183.17,183.14,0.36000001]
[1755561649953,3.61591927,183.16,183.14,0.36000001]
[1755561650153,0.06,183.17,183.15,0.36]
[1755561650329,0.06,183.17,183.16,0.36]
[1755561650530,3.67643251,183.17,183.16,0.36]
[1755561650851,0.06,183.17,183.16,0.36]
[1755561651258,0.06,183.17,183.14,5.82027995]
[1755561651430,0.06,183.17,183.14,1e-08]
[1755561651630,0.06,183.17,183.15,0.36]
[1755561652040,0.06,183.17,183.14,1e-08]
[1755561652041,4.33625286,183.16,183.14,1e-08]
[1755561652242,41.95625286,183.15,183.14,1e-08]
[1755561652445,42.67625286,183.15,183.14,1e-08]
[1755561652643,57.78246843,183.15,183.14,1e-08]
[1755561653361,61.79909308,183.15,183.14,1e-08]
[1755561654263,71.7732427,183.15,183.14,1e-08]
[1755561654761,67.25909854,183.15,183.14,1e-08]
[1755561654936,24.90247389,183.15,183.14,1e-08]
[1755561655135,41.97625286,183.15,183.14,1e-08]
[1755561655365,3.61625286,183.15,183.14,1e-08]
[1755561655865,4.33625286,183.15,183.14,1e-08]
[1755561656031,9.79625832,183.15,183.14,1e-08]
[1755561656735,4.33625286,183.15,183.14,1e-08]
[1755561657364,9.79625832,183.15,183.14,1e-08]
[1755561657661,24.90247389,183.15,183.14,1e-08]
[1755561658149,28.921889,183.15,183.14,1e-08]
[1755561659362,24.90247389,183.15,183.14,1e-08]
[1755561659560,28.92080523,183.15,183.14,1e-08]
[1755561660666,28.92080523,183.15,183.13,0.03]
[1755561660968,51.2753229,183.14,183.13,0.03]
[1755561661469,51.2750184,183.14,183.13,0.03]
[1755561661766,56.73532199,183.14,183.13,0.03]
[1755561663771,52.21458329,183.14,183.13,0.03]
[1755561664077,67.32079886,183.14,183.13,0.03]
[1755561664248,63.30277202,183.14,183.13,0.03]
[1755561664447,71.82129859,183.14,183.13,0.03]
[1755561665458,71.82133723,183.14,183.13,0.03]
[1755561666273,71.10133723,183.14,183.13,0.03]
[1755561666471,3.61625286,183.14,183.13,0.39]
[1755561666863,3.61625286,183.14,183.13,0.03]
[1755561671697,9.07655645,183.14,183.13,0.03]
[1755561672277,24.88277202,183.14,183.13,0.03]
[1755561672986,15.10621557,183.13,183.11,0.03]
[1755561673286,61.1651925,183.12,183.11,0.03]
[1755561673487,61.86428644,183.12,183.11,0.03]
[1755561674387,67.32410676,183.12,183.11,0.03]
[1755561675700,20.56741375,183.11,183.1,0.03]
[1755561675897,32.72454103,183.11,183.1,0.03]
[1755561676082,33.42454103,183.11,183.1,0.03]
[1755561676507,28.90440499,183.11,183.09,0.03]
[1755561676690,61.86320681,183.1,183.09,0.03]
[1755561677691,15.10621557,183.09,183.08,1e-08]
[1755561677898,53.95244401,183.09,183.08,1e-08]
[1755561678103,49.43633049,183.09,183.08,1e-08]
[1755561678892,54.89812523,183.09,183.08,1e-08]
[1755561679318,59.40892195,183.09,183.08,1e-08]
[1755561679531,93.31812523,183.09,183.08,1e-08]
[1755561680198,89.30426317,183.09,183.08,1e-08]
[1755561681016,63.30426317,183.09,183.08,1e-08]
[1755561682127,62.60426317,183.09,183.08,1e-08]
[1755561682887,63.30426317,183.09,183.08,1e-08]
[1755561684524,67.3078829,183.09,183.08,1e-08]
[1755561685425,63.30426317,183.09,183.08,1e-08]
[1755561686223,62.60426317,183.09,183.08,1e-08]
[1755561686606,62.62426317,183.09,183.08,1e-08]
[1755561688103,63.32426317,183.09,183.08,1e-08]
[1755561689403,71.83346576,183.09,183.08,1e-08]
[1755561690310,63.32426317,183.09,183.08,1e-08]
[1755561691926,67.32107345,183.09,183.08,1e-08]
[1755561693121,15.10621557,183.05,183.04,0.03]
[1755561693329,57.18246843,183.05,183.04,0.03]
[1755561693498,57.88246843,183.05,183.04,0.03]
[1755561693922,63.34545668,183.05,183.04,0.03]
[1755561694313,62.64545668,183.05,183.04,0.03]
[1755561696728,63.34545668,183.05,183.04,0.03]
[1755561699531,62.64545668,183.05,183.04,0.03]
[1755561699934,57.18246843,183.05,183.04,0.03]
[1755561700135,57.18246843,183.05,183.04,0.42]
[1755561700812,42.07625286,183.05,183.04,0.42]
[1755561704023,38.44,183.06,183.04,0.42]
[1755561704546,15.16621557,183.09,183.05,0.39]
[1755561704709,15.10621557,183.07,183.04,0.03]
[1755561704909,3.60031835,183.06,183.04,0.03]
[1755561705134,38.44,183.05,183.04,0.03]
[1755561705342,42.04031835,183.05,183.04,0.03]
[1755561705715,42.75031835,183.05,183.04,0.03]
[1755561705936,42.04031835,183.05,183.04,0.03]
[1755561706117,38.44,183.05,183.04,0.42]
[1755561706329,42.04006361,183.05,183.04,0.42]
[1755561706516,38.42,183.06,183.04,0.42]
[1755561708767,38.4,183.07,183.04,0.42]
[1755561708926,3.60035342,183.06,183.04,0.42]
[1755561709122,39.11,183.07,183.04,0.03]
[1755561709527,44.57244678,183.07,183.04,0.03]
[1755561709739,15.10621557,183.05,183.04,0.03]
[1755561709931,57.10655195,183.05,183.04,0.03]
[1755561710237,57.81655195,183.05,183.04,0.03]
[1755561711728,63.2795402,183.05,183.04,0.03]
[1755561713230,42.00033638,183.05,183.04,0.03]
[1755561716230,42.00033638,183.05,183.04,0.42]
[1755561716742,3.60033638,183.05,183.04,0.42]
[1755561717130,3.60033638,183.05,183.04,0.03]
[1755561718055,3.60033638,183.05,183.04,0.42]
[1755561718528,3.60033638,183.05,183.04,0.03]
[1755561719051,48.13332463,183.05,183.04,0.03]
[1755561720463,42.67033638,183.05,183.04,0.03]
[1755561721054,3.60033638,183.05,183.04,0.03]
[1755561721248,41.96033638,183.05,183.04,0.03]
[1755561723233,42.67033638,183.05,183.04,0.03]
[1755561723441,48.13332463,183.05,183.04,0.03]
[1755561723963,42.67033638,183.05,183.04,0.03]
[1755561724454,41.96033638,183.05,183.04,0.03]
[1755561724838,3.60033638,183.05,183.04,0.03]
[1755561725762,4.31033638,183.05,183.04,0.03]
[1755561726165,3.60033638,183.05,183.04,0.03]
[1755561729251,4.32033638,183.05,183.04,0.03]
[1755561731067,9.78332463,183.05,183.04,0.03]
[1755561733785,4.32033638,183.05,183.04,0.03]
[1755561734170,9.78332463,183.05,183.04,0.03]
[1755561740289,13.80051706,183.05,183.04,0.03]
[1755561743502,15.10621557,183.04,183.02,0.03]
[1755561743672,61.08374438,183.03,183.02,0.03]
[1755561744000,61.80374438,183.03,183.02,0.03]
[1755561744291,67.83148349,183.03,183.02,0.03]
[1755561745182,61.80374438,183.03,183.02,0.03]
[1755561745385,67.26732958,183.03,183.02,0.03]
[1755561746273,67.26607737,183.03,183.02,0.03]
[1755561746792,67.26487678,183.03,183.02,0.03]
[1755561748582,73.29261589,183.03,183.02,0.03]
[1755561748889,73.29261589,183.03,183.0,0.03]
[1755561748890,41.10621557,183.01,183.0,0.03]
[1755561749203,87.08129158,183.01,183.0,0.03]
[1755561749365,87.80129158,183.01,183.0,0.03]
[1755561750184,93.26547386,183.01,183.0,0.03]
[1755561750696,54.90547386,183.01,183.0,0.03]
[1755561750905,97.83887452,183.01,183.0,0.03]
[1755561751195,93.32547386,183.01,183.0,0.03]
[1755561751597,32.69782978,183.01,183.0,0.03]
[1755561751803,71.11782978,183.01,183.0,0.03]
[1755561752587,63.31073423,183.01,183.0,0.03]
[1755561753609,42.02033638,183.01,183.0,0.03]
[1755561754097,47.48451866,183.01,183.0,0.03]
[1755561754303,42.02033638,183.01,183.0,0.03]
[1755561755500,47.48451866,183.01,183.0,0.03]
[1755561755694,48.20451866,183.01,183.0,0.03]
[1755561756584,42.02033638,183.01,183.0,0.03]
[1755561756984,42.02033638,183.01,183.0,0.42]
[1755561757820,3.60033638,183.01,183.0,0.42]
[1755561758509,3.60033638,183.01,183.0,0.03]
[1755561758895,3.60033638,183.01,183.0,0.42]
[1755561759287,38.42,183.04,183.0,0.42]
[1755561759588,3.61026588,183.03,183.0,0.42]
[1755561759798,3.61026588,183.02,183.0,0.42]
[1755561759998,38.42,183.05,183.0,0.42]
[1755561760205,3.61035619,183.04,183.0,0.42]
[1755561760414,0.06,183.02,183.0,0.42]
[1755561760724,0.06,183.02,183.0,5.88430904]
[1755561760883,0.06,183.02,183.01,0.39]
[1755561762825,0.06,183.02,183.01,5.85418228]
[1755561767202,0.06,183.06,183.04,26.0]
[1755561767719,0.06,183.06,183.05,0.39]
[1755561769313,0.06,183.06,183.05,5.85298825]
[1755561770818,0.06,183.06,183.05,5.46298825]
[1755561771203,0.75,183.06,183.04,31.46322875]
[1755561771900,0.75,183.06,183.01,52.45045571]
[1755561771901,0.69,183.05,183.01,5.46418228]
[1755561772117,0.69,183.04,183.03,26.0]
[1755561773228,0.75,183.06,183.04,26.0]
[1755561774401,0.06,183.06,183.04,26.0]
[1755561774605,0.06,183.06,183.04,26.39]
[1755561775227,0.06,183.06,183.04,31.46302182]
[1755561776319,0.06,183.06,183.05,0.39]
[1755561776519,0.06,183.07,183.05,0.39]
[1755561776831,4.7475,183.08,183.05,0.93629882]
[1755561777001,4.4775,183.08,183.06,15.10621557]
[1755561777197,0.06,183.09,183.08,31.46209307]
[1755561777396,0.06,183.1,183.08,31.46209307]
[1755561777622,0.06,183.1,183.09,38.8]
[1755561778732,1e-08,183.1,183.09,53.90621557]
[1755561779527,1e-08,183.1,183.09,59.36801031]
[1755561779734,0.06,183.16,183.09,59.36801031]
[1755561779735,0.06,183.16,183.12,26.0]
[1755561780312,1e-08,183.13,183.12,41.65230556]
[1755561780553,0.06,183.22,183.19,15.10621557]
[1755561780554,1e-08,183.21,183.19,15.10621557]
[1755561780754,1e-08,183.22,183.21,15.10621557]
[1755561781055,1e-08,183.22,183.2,38.9]
[1755561781209,1e-08,183.24,183.23,41.10621557]
[1755561781408,0.2,183.28,183.24,15.10621557]
[1755561781608,0.2,183.28,183.26,15.10621557]
[1755561782231,0.2,183.28,183.26,17.29206757]
[1755561782424,0.06,183.29,183.28,41.10621557]
[1755561782822,1e-08,183.29,183.28,41.10621557]
[1755561783037,1e-08,183.29,183.28,80.06621557]
[1755561783412,1e-08,183.29,183.28,85.52234826]
[1755561784559,1e-08,183.29,183.28,95.52234826]
[1755561785553,1e-08,183.29,183.28,85.52234826]
[1755561785847,1e-08,183.29,183.28,85.50234826]
[1755561789556,0.70000001,183.29,183.27,5.45638163]
[1755561789744,1e-08,183.29,183.27,5.45638163]
[1755561789958,0.70000001,183.29,183.27,5.45638163]
[1755561790326,0.7,183.28,183.26,44.77668841]
[1755561790526,0.7,183.28,183.26,39.32]
[1755561790929,0.7,183.28,183.26,65.32]
[1755561791357,0.7,183.28,183.26,39.32]
[1755561791534,0.7,183.28,183.24,65.58]
[1755561792657,0.7,183.27,183.26,26.0]
[1755561795040,1e-08,183.29,183.26,31.45672814]
[1755561795238,0.70000001,183.29,183.26,31.45672814]
[1755561795552,0.70000001,183.29,183.26,26.0]
[1755561795733,15.10621557,183.28,183.2,5.45851528]
[1755561795939,15.10621557,183.26,183.18,44.99911125]
[1755561796146,0.7,183.25,183.21,26.0]
[1755561797455,1e-08,183.29,183.22,5.45791944]
[1755561797648,0.7,183.27,183.22,5.45791944]
[1755561798864,0.7,183.26,183.22,5.45791944]
[1755561799244,0.7,183.25,183.22,5.45791944]
[1755561799451,1e-08,183.29,183.22,19.10271804]
[1755561799652,0.70000001,183.29,183.22,19.10271804]
[1755561799849,1e-08,183.29,183.22,19.10271804]
[1755561800566,1e-08,183.29,183.22,21.28892804]
[1755561801071,1e-08,183.29,183.26,26.0]
[1755561801276,1e-08,183.29,183.27,39.52]
[1755561802577,0.7,183.28,183.27,39.52]
[1755561802764,0.7,183.28,183.27,44.9564304]
[1755561802968,1e-08,183.29,183.27,44.9564304]
[1755561804762,0.70000001,183.29,183.27,44.9564304]
[1755561805063,1e-08,183.29,183.27,44.9564304]
[1755561805450,0.70000001,183.29,183.27,44.9564304]
[1755561806366,1e-08,183.29,183.27,44.9564304]
[1755561806744,0.7,183.28,183.27,44.9564304]
[1755561807157,1e-08,183.29,183.27,44.9564304]
[1755561809634,1e-08,183.29,183.28,15.10621557]
[1755561810968,1e-08,183.29,183.28,20.56234826]
[1755561813045,1e-08,183.29,183.28,22.74772226]
[1755561813968,0.70000001,183.29,183.28,5.45613269]
[1755561814168,0.70000001,183.29,183.28,44.99613269]
[1755561815043,1e-08,183.29,183.28,44.99613269]
[1755561816966,1e-08,183.29,183.28,60.64796152]
[1755561817153,1e-08,183.29,183.28,60.10234826]
[1755561820671,1e-08,183.29,183.28,62.28772226]
[1755561822152,0.71000001,183.29,183.28,5.45613269]
[1755561822356,0.71000001,183.29,183.28,44.95613269]
[1755561822759,1e-08,183.29,183.28,44.95613269]
[1755561824260,0.71000001,183.29,183.28,44.95613269]
[1755561825675,1e-08,183.29,183.28,44.95613269]
[1755561825876,0.71000001,183.29,183.28,44.95613269]
[1755561826782,4.3256908,183.29,183.27,5.45641841]
[1755561826965,4.32569079,183.28,183.27,39.46]
[1755561827351,0.71,183.28,183.27,39.46]
[1755561827549,4.32500612,183.28,183.27,39.46]
[1755561827773,0.71,183.28,183.27,39.46]
[1755561828161,0.71,183.28,183.27,44.9164304]
[1755561828463,1e-08,183.29,183.27,44.9164304]
[1755561828659,0.71000001,183.29,183.27,44.9164304]
[1755561828864,0.71000001,183.29,183.27,70.9164304]
[1755561829075,0.71,183.28,183.27,70.9164304]
[1755561829280,0.71,183.28,183.27,44.9164304]
[1755561830963,1e-08,183.29,183.27,44.9164304]
[1755561831795,0.71,183.28,183.27,31.4564304]
[1755561831963,0.71,183.28,183.27,70.8764304]
[1755561832985,0.71,183.28,183.27,26.0]
[1755561833192,0.71,183.28,183.26,0.03]
[1755561834093,0.71,183.27,183.26,5.48670778]
[1755561834698,0.71,183.27,183.26,0.03]
[1755561838196,0.71,183.27,183.26,26.03]
[1755561838401,0.71000001,183.29,183.28,26.0]
[1755561839502,0.71000001,183.29,183.28,31.45613269]
[1755561840490,0.71000001,183.29,183.28,26.0]
[1755561840701,6.16586848,183.29,183.26,0.03]
[1755561841207,0.71,183.28,183.22,0.03]
[1755561841378,5.4564304,183.27,183.22,0.03]
[1755561841579,0.71,183.26,183.22,0.03]
[1755561843378,6.16674743,183.26,183.22,0.03]
[1755561843923,0.71,183.25,183.22,0.03]
[1755561844421,5.45762156,183.23,183.22,0.03]
[1755561844832,6.16762156,183.23,183.22,0.03]
[1755561845820,0.71,183.23,183.22,0.03]
[1755561847400,3.60445775,183.28,183.22,0.03]
[1755561847711,0.71,183.25,183.22,0.03]
[1755561849703,6.16716709,183.25,183.22,0.03]
[1755561850223,0.72,183.24,183.22,0.03]
[1755561851232,20.56383713,183.23,183.22,0.03]
[1755561851734,21.28383713,183.23,183.22,0.03]
[1755561851937,0.72,183.23,183.22,0.03]
[1755561856341,6.17762156,183.23,183.22,0.03]
[1755561858143,0.72,183.23,183.22,0.03]
[1755561861662,6.1758925,183.29,183.22,0.69]
[1755561862029,0.06,183.26,183.22,0.69]
[1755561862239,0.06,183.26,183.23,0.66]
[1755561862629,0.06,183.26,183.22,26.03]
[1755561862836,0.06,183.26,183.24,0.66]
[1755561863852,0.06,183.26,183.25,26.66]
[1755561864726,0.06,183.26,183.25,26.0]
[1755561864940,0.78,183.26,183.22,0.03]
[1755561865251,0.78,183.26,183.22,26.03]
[1755561865548,0.06,183.26,183.22,26.69]
[1755561865955,0.72,183.25,183.22,31.48781084]
[1755561866323,0.06,183.26,183.22,32.14781084]
[1755561867141,0.06,183.26,183.23,0.66]
[1755561867355,0.06,183.26,183.24,0.66]
[1755561868353,0.06,183.26,183.22,31.48781084]
[1755561868354,0.06,183.26,183.22,32.14781084]
[1755561868645,0.06,183.26,183.24,5.45732372]
[1755561869445,0.06,183.26,183.22,0.03]
[1755561869635,0.06,183.26,183.22,26.03]
[1755561870143,0.72,183.25,183.22,26.03]
[1755561870345,0.72,183.25,183.22,31.48787132]
[1755561871647,0.06,183.26,183.22,31.48787132]
[1755561872634,0.72,183.25,183.22,0.03]
[1755561872838,0.72,183.24,183.22,0.03]
[1755561873825,0.06,183.26,183.22,0.03]
[1755561874050,0.72,183.25,183.22,5.48791305]
[1755561874224,0.72,183.25,183.22,0.03]
[1755561875424,3.67136847,183.26,183.22,0.03]
[1755561875629,3.67136847,183.26,183.22,0.69]
[1755561876071,4.39136847,183.26,183.22,0.03]
[1755561876426,3.67136847,183.26,183.22,0.69]
[1755561876649,0.06,183.26,183.22,0.69]
[1755561876859,3.67136847,183.26,183.22,0.69]
[1755561877332,3.67136847,183.26,183.22,32.14776788]
[1755561878454,4.38136847,183.26,183.22,32.14776788]
[1755561878938,3.67136847,183.26,183.22,32.14776788]
[1755561879135,15.81621557,183.25,183.22,0.03]
[1755561879334,3.61763019,183.24,183.22,0.03]
[1755561879548,0.71,183.24,183.22,0.03]
[1755561879735,0.71,183.23,183.22,0.03]
[1755561880656,0.06,183.26,183.22,0.03]
[1755561880838,3.68054138,183.26,183.22,0.03]
[1755561881038,3.68054138,183.26,183.23,0.68]
[1755561881241,0.06,183.26,183.25,5.45702592]
[1755561881448,0.06,183.26,183.25,6.13702592]
[1755561884062,0.06,183.26,183.25,5.45702592]
[1755561884751,0.06,183.26,183.25,6.13702592]
[1755561884953,0.06,183.26,183.25,5.45702592]
[1755561885672,0.06,183.26,183.24,5.45732372]
[1755561885855,0.06,183.26,183.23,7.6444243]
[1755561886058,0.77,183.26,183.25,26.0]
[1755561886468,0.06,183.26,183.22,7.67482287]
[1755561886662,0.06,183.26,183.23,0.68]
[1755561886964,0.06,183.26,183.25,26.0]
[1755561889373,0.06,183.26,183.25,31.45702592]
[1755561891065,0.06,183.26,183.25,32.13702592]
[1755561891978,0.06,183.26,183.25,34.32359492]
[1755561894378,0.06,183.26,183.25,33.64359492]
[1755561895166,0.06,183.26,183.25,33.67359492]
[1755561895377,0.06,183.26,183.25,34.35359492]
[1755561896580,0.06,183.26,183.25,33.67359492]
[1755561897170,0.06,183.26,183.25,34.35359492]
[1755561898561,1e-08,183.26,183.25,34.35359492]
[1755561898765,1e-08,183.26,183.25,49.45981049]
[1755561898980,1e-08,183.26,183.25,50.00551308]
[1755561901173,1e-08,183.26,183.25,49.45981049]
[1755561902192,1e-08,183.26,183.25,50.00551308]
[1755561902870,1e-08,183.28,183.26,15.10621557]
[1755561903185,1e-08,183.28,183.27,54.12621557]
[1755561903371,1e-08,183.28,183.27,54.80621557]
[1755561903570,1e-08,183.28,183.27,55.35185861]
[1755561904474,1e-08,183.3,183.29,26.0]
[1755561904802,1e-08,183.31,183.3,15.10621557]
[1755561904968,0.06,183.33,183.32,26.0]
[1755561905167,0.06,183.33,183.32,65.02]
[1755561905488,1e-08,183.35,183.33,15.10621557]
[1755561905692,1e-08,183.35,183.34,39.04]
[1755561905905,1e-08,183.35,183.34,39.72]
[1755561906190,1e-08,183.35,183.34,43.340051]
[1755561906888,1e-08,183.35,183.34,48.79439811]
[1755561909074,1e-08,183.35,183.34,63.90061368]
[1755561909774,1e-08,183.35,183.34,63.22061368]
[1755561913480,1e-08,183.35,183.34,63.91061368]
[1755561913977,1e-08,183.35,183.34,48.03439811]
[1755561914203,1e-08,183.35,183.34,44.41434711]
[1755561915004,0.70000001,183.35,183.34,44.41434711]
[1755561915584,1e-08,183.35,183.34,44.41434711]
[1755561918203,0.70000001,183.35,183.34,44.41434711]
[1755561918821,0.70000001,183.35,183.34,38.96]
[1755561919323,0.70000001,183.35,183.33,5.45458641]
[1755561919506,0.70000001,183.35,183.34,38.94]
[1755561919912,0.70000001,183.35,183.33,5.45458641]
[1755561920135,0.7,183.34,183.31,31.45512136]
[1755561920424,1e-08,183.35,183.34,26.0]
[1755561920723,1e-08,183.35,183.33,38.94]
[1755561920925,0.7,183.34,183.33,38.94]
[1755561922511,0.7,183.34,183.33,44.39464462]
[1755561923920,0.7,183.34,183.33,38.94]
[1755561924111,0.7,183.34,183.33,44.39464462]
[1755561925730,0.7,183.34,183.33,38.94]
[1755561927439,1e-08,183.35,183.33,38.94]
[1755561927933,0.7,183.34,183.33,38.88]
[1755561928108,0.7,183.34,183.32,38.88]
[1755561928429,0.7,183.34,183.32,64.88]
[1755561929433,1e-08,183.35,183.34,26.0]
[1755561930103,0.70000001,183.35,183.34,26.0]
[1755561930935,0.70000001,183.35,183.34,38.86]
[1755561931241,1e-08,183.35,183.34,38.86]
[1755561932246,1e-08,183.35,183.34,44.31434711]
[1755561932920,1e-08,183.35,183.34,38.86]
[1755561933120,0.70000001,183.35,183.34,38.86]
[1755561933842,0.70000001,183.35,183.3,26.0]
[1755561934049,0.70000001,183.35,183.31,38.84]
[1755561934347,0.70000001,183.35,183.34,26.0]
[1755561934541,1e-08,183.35,183.34,26.0]
[1755561935163,0.70000001,183.35,183.34,26.0]
[1755561936723,1e-08,183.35,183.34,26.0]
[1755561937355,1e-08,183.35,183.34,31.45434711]
[1755561937728,1e-08,183.35,183.34,32.11434711]
[1755561940137,1e-08,183.35,183.34,31.45434711]
[1755561940831,1e-08,183.35,183.34,32.11434711]
[1755561941635,1e-08,183.35,183.33,31.45459131]
[1755561941874,1e-08,183.35,183.34,26.0]
[1755561942037,1e-08,183.35,183.33,38.8]
[1755561942234,1e-08,183.35,183.3,0.03]
[1755561942441,0.66,183.34,183.31,38.82]
[1755561942645,0.66,183.33,183.31,38.82]
[1755561942860,0.66,183.33,183.31,44.27516755]
[1755561944163,1e-08,183.35,183.31,44.27516755]
[1755561944471,1e-08,183.35,183.34,26.0]
[1755561944652,1e-08,183.35,183.34,26.03]
[1755561945053,0.66000001,183.35,183.34,26.03]
[1755561946368,1e-08,183.35,183.34,26.03]
[1755561947877,1e-08,183.35,183.34,32.14434711]
[1755561948064,0.06,183.37,183.34,32.14434711]
[1755561948251,0.06,183.37,183.35,39.42]
[1755561948779,0.06,183.37,183.34,26.03]
[1755561948780,0.66,183.36,183.34,26.03]
[1755561949078,0.06,183.37,183.36,26.0]
[1755561949244,0.06,183.37,183.36,64.78]
[1755561949837,0.06,183.37,183.36,70.23375218]
[1755561950745,0.06,183.39,183.36,70.89375218]
[1755561950952,0.06,183.39,183.37,0.66]
[1755561951288,0.06,183.39,183.38,38.8]
[1755561951852,0.06,183.39,183.38,44.25315737]
[1755561954443,80.7,183.46,183.41,26.0]
[1755561954444,4.28549976,183.43,183.41,26.0]
[1755561954678,4.28549976,183.43,183.42,26.0]
[1755561954679,0.66,183.43,183.42,26.0]